{"text_format":"1","workbook":"xlsx","n_sheets":4,"sheets":["Сводная таблица ","Полный список","монтажники","изолировщики"],"not_rendered":{"charts":0,"images":0,"macros":1,"external_links":0,"defined_names":1,"comments":0,"pivot_tables":1},"unopened":[],"bounds":{"document_bytes":16777216,"sheet_cells":100000,"rows_first":2000,"rows_last":500,"rows_between":2000,"halvings":0,"cell_chars":16384,"cell_head_chars":4096},"cells_cut":0,"cells_raw":0,"read":"whole","date_system":"1900"}

{"sheet":"Сводная таблица ","index":0,"n_rows":25,"n_cols":6,"rows_kept":25,"cut":false,"hidden":false,"merged":[]}
[]
[]
["Количество по полю Должность",""]
["ФИО","водитель автомобиля","изолировщик","монтажник","подсобный рабочий","стропальщик"]
["Акименко Андрей Владимирович",null,null,null,null,1]
["Артеменко Сергей Николаевич",null,null,1]
["Баймуратов Игорь Радикович",null,null,null,1]
["Баранов Александр Владимирович",null,null,null,1]
["Белов Игорь Кузьмич",1]
["Бережный Сергей Александрович",null,1]
["Бирюков Владислав Васильевич",1]
["Блаживский Олег Степанович",null,1]
["Блажко Александр Витальевич",1]
["Боголюбский Николай Владимирович",null,null,1]
["Бондаренко Геннадий Викторович",1]
["Бондаренко Сергей Павлович",null,null,1]
["Бондарь Олег Анатольевич",1]
["Борисович Святослав Николаевич",null,1]
["Бородавка Роман Эдуардович",null,null,1]
["Бородавка Эдуард Иванович",null,null,1]
["Бортник  Юрий Анатольевич",1]
["Боярчук Александр Николаевич",1]
["Бровенко Валерий Константинович",null,1]
["Бубнов Александр Александрович",null,null,1]
["Общий итог",7,4,6,2,1]

{"sheet":"Полный список","index":1,"n_rows":28,"n_cols":5,"rows_kept":28,"cut":false,"hidden":false,"merged":[[5,1,5,2]]}
[]
[]
[]
[]
[]
[null,"Шапка"]
[]
[null,"ФИО","Должность"]
[null,"Акименко Андрей Владимирович","стропальщик",1,"Как из полного списка перенести людей на отдельные листы по должностям?"]
[null,"Артеменко Сергей Николаевич","монтажник",3,"Список постоянно обновляется."]
[null,"Баймуратов Игорь Радикович","подсобный рабочий",{"$f":"D10+1","v":4}]
[null,"Баранов Александр Владимирович","подсобный рабочий",{"$f":"D11+1","v":5}]
[null,"Белов Игорь Кузьмич","водитель автомобиля",6]
[null,"Бережный Сергей Александрович","изолировщик",7]
[null,"Бирюков Владислав Васильевич","водитель автомобиля",8]
[null,"Блаживский Олег Степанович","изолировщик",9]
[null,"Блажко Александр Витальевич","водитель автомобиля",10]
[null,"Боголюбский Николай Владимирович","монтажник",11]
[null,"Бондаренко Геннадий Викторович","водитель автомобиля",12]
[null,"Бондаренко Сергей Павлович","монтажник",13]
[null,"Бондарь Олег Анатольевич","водитель автомобиля",14]
[null,"Борисович Святослав Николаевич","изолировщик",15]
[null,"Бородавка Роман Эдуардович","монтажник",16]
[null,"Бородавка Эдуард Иванович","монтажник",17]
[null,"Бортник  Юрий Анатольевич","водитель автомобиля",18]
[null,"Боярчук Александр Николаевич","водитель автомобиля",19]
[null,"Бровенко Валерий Константинович","изолировщик",20]
[null,"Бубнов Александр Александрович","монтажник",21]

{"sheet":"монтажники","index":2,"n_rows":26,"n_cols":3,"rows_kept":26,"cut":false,"hidden":false,"merged":[[6,1,6,2]]}
[]
[]
[]
[]
[]
[]
[null,"Шапка"]
[]
[null,"ФИО","Должность"]
[null,{"$f":"IF(GETPIVOTDATA(\"Должность\",'Сводная таблица '!$A$3,\"ФИО\",\"Акименко Андрей Владимирович\",\"Должность\",\"водитель автомобиля\")>0,'Сводная таблица '!A5,\" \")","v":" "},"монтажник"]
[null,{"$f":"IF(GETPIVOTDATA(\"Должность\",'Сводная таблица '!$A$3,\"ФИО\",\"Акименко Андрей Владимирович\",\"Должность\",\"водитель автомобиля\")>0,'Сводная таблица '!A6,\" \")","v":" "},"монтажник"]
[null,{"$f":"IF(GETPIVOTDATA(\"Должность\",'Сводная таблица '!$A$3,\"ФИО\",\"Акименко Андрей Владимирович\",\"Должность\",\"водитель автомобиля\")>0,'Сводная таблица '!A7,\" \")","v":" "},"монтажник"]
[null,{"$f":"IF(GETPIVOTDATA(\"Должность\",'Сводная таблица '!$A$3,\"ФИО\",\"Акименко Андрей Владимирович\",\"Должность\",\"водитель автомобиля\")>0,'Сводная таблица '!A8,\" \")","v":" "},"монтажник"]
[null,{"$f":"IF(GETPIVOTDATA(\"Должность\",'Сводная таблица '!$A$3,\"ФИО\",\"Акименко Андрей Владимирович\",\"Должность\",\"водитель автомобиля\")>0,'Сводная таблица '!A9,\" \")","v":" "},"монтажник"]
[null,{"$f":"IF(GETPIVOTDATA(\"Должность\",'Сводная таблица '!$A$3,\"ФИО\",\"Акименко Андрей Владимирович\",\"Должность\",\"водитель автомобиля\")>0,'Сводная таблица '!A10,\" \")","v":" "},"монтажник"]
[null,{"$f":"IF(GETPIVOTDATA(\"Должность\",'Сводная таблица '!$A$3,\"ФИО\",\"Акименко Андрей Владимирович\",\"Должность\",\"водитель автомобиля\")>0,'Сводная таблица '!A11,\" \")","v":" "}]
[null,{"$f":"IF(GETPIVOTDATA(\"Должность\",'Сводная таблица '!$A$3,\"ФИО\",\"Акименко Андрей Владимирович\",\"Должность\",\"водитель автомобиля\")>0,'Сводная таблица '!A12,\" \")","v":" "}]
[null,{"$f":"IF(GETPIVOTDATA(\"Должность\",'Сводная таблица '!$A$3,\"ФИО\",\"Акименко Андрей Владимирович\",\"Должность\",\"водитель автомобиля\")>0,'Сводная таблица '!A13,\" \")","v":" "}]
[null,{"$f":"IF(GETPIVOTDATA(\"Должность\",'Сводная таблица '!$A$3,\"ФИО\",\"Акименко Андрей Владимирович\",\"Должность\",\"водитель автомобиля\")>0,'Сводная таблица '!A14,\" \")","v":" "}]
[null,{"$f":"IF(GETPIVOTDATA(\"Должность\",'Сводная таблица '!$A$3,\"ФИО\",\"Акименко Андрей Владимирович\",\"Должность\",\"водитель автомобиля\")>0,'Сводная таблица '!A15,\" \")","v":" "}]
[null,{"$f":"IF(GETPIVOTDATA(\"Должность\",'Сводная таблица '!$A$3,\"ФИО\",\"Акименко Андрей Владимирович\",\"Должность\",\"водитель автомобиля\")>0,'Сводная таблица '!A16,\" \")","v":" "}]
[null,{"$f":"IF(GETPIVOTDATA(\"Должность\",'Сводная таблица '!$A$3,\"ФИО\",\"Акименко Андрей Владимирович\",\"Должность\",\"водитель автомобиля\")>0,'Сводная таблица '!A17,\" \")","v":" "}]
[null,{"$f":"IF(GETPIVOTDATA(\"Должность\",'Сводная таблица '!$A$3,\"ФИО\",\"Акименко Андрей Владимирович\",\"Должность\",\"водитель автомобиля\")>0,'Сводная таблица '!A18,\" \")","v":" "}]
[null,{"$f":"IF(GETPIVOTDATA(\"Должность\",'Сводная таблица '!$A$3,\"ФИО\",\"Акименко Андрей Владимирович\",\"Должность\",\"водитель автомобиля\")>0,'Сводная таблица '!A19,\" \")","v":" "}]
[null,{"$f":"IF(GETPIVOTDATA(\"Должность\",'Сводная таблица '!$A$3,\"ФИО\",\"Акименко Андрей Владимирович\",\"Должность\",\"водитель автомобиля\")>0,'Сводная таблица '!A20,\" \")","v":" "}]
[null,{"$f":"IF(GETPIVOTDATA(\"Должность\",'Сводная таблица '!$A$3,\"ФИО\",\"Акименко Андрей Владимирович\",\"Должность\",\"водитель автомобиля\")>0,'Сводная таблица '!A21,\" \")","v":" "}]

{"sheet":"изолировщики","index":3,"n_rows":0,"n_cols":0,"rows_kept":0,"cut":false,"hidden":false,"merged":[]}